bitfinex/quotes_SOLUSD_20250108
["timestamp","ask_amount","ask_price","bid_price","bid_amount"]
[1736336646754,1.6658,195.52,195.43,147.72331063]
[1736336646956,1.6658,195.52,195.44,147.17115229]
[1736336647155,1.6658,195.52,195.45,10.62294506]
[1736336647340,1.6658,195.52,195.45,0.55179277]
[1736336647962,1.6658,195.52,195.45,171.49982906]
[1736336648164,1.6658,195.52,195.45,137.1]
[1736336648959,20.0,195.5,195.45,137.1]
[1736336649761,1.6658,195.52,195.45,137.1]
[1736336650159,20.0,195.5,195.45,137.1]
[1736336651263,8.4498,195.53,195.45,137.1]
[1736336652043,20.0,195.5,195.45,137.1]
[1736336652554,20.0,195.5,195.4,137.1]
[1736336652956,20.0,195.5,195.41,0.55270661]
[1736336653764,8.4498,195.53,195.41,16.27943033]
[1736336654073,20.0,195.5,195.41,16.27943033]
[1736336655165,1.664,195.51,195.41,16.27943033]
[1736336655366,1.664,195.51,195.43,15.72672372]
[1736336655569,1.664,195.51,195.44,137.652069]
[1736336655767,1.664,195.51,195.44,137.1]
[1736336655968,20.0,195.5,195.44,137.1]
[1736336656347,20.0,195.5,195.37,152.82672372]
[1736336656558,20.0,195.5,195.38,0.55261366]
[1736336657249,90.06632543,195.68,195.38,0.55261366]
[1736336657250,8.0817,195.45,195.38,137.1]
[1736336658558,8.0817,195.45,195.39,0.55260993]
[1736336658874,1.5898,195.45,195.39,0.55260993]
[1736336659962,1.5898,195.45,195.38,137.1]
[1736336660964,1.5898,195.45,195.39,0.5529223]
[1736336661572,1.5898,195.45,195.39,137.6529223]
[1736336661869,1.5898,195.45,195.39,137.1]
[1736336662059,1.5898,195.45,195.4,0.55259127]
[1736336667588,1.5898,195.45,195.4,137.65259127]
[1736336667763,1.5898,195.45,195.4,137.1]
[1736336667963,1.5898,195.45,195.41,0.55254229]
[1736336668685,6.0978,195.49,195.41,137.65254229]
[1736336668870,6.0978,195.49,195.41,152.82672372]
[1736336669279,6.0978,195.49,195.41,137.1]
[1736336670059,6.0978,195.49,195.42,137.65246204]
[1736336670366,6.0978,195.49,195.42,137.1]
[1736336670685,6.0978,195.49,195.43,0.5523837]
[1736336671480,6.0978,195.49,195.42,137.1]
[1736336672864,20.0,195.46,195.38,139.78]
[1736336673171,20.0,195.46,195.38,137.1]
[1736336673569,20.0,195.46,195.35,137.1]
[1736336673769,20.0,195.46,195.36,0.55306052]
[1736336675078,20.0,195.46,195.36,137.65306052]
[1736336675284,20.0,195.46,195.36,137.1]
[1736336676090,20.0,195.46,195.37,0.55312178]
[1736336677266,8.7578,195.49,195.38,15.72672372]
[1736336677564,8.7578,195.49,195.39,0.5526015]
[1736336677782,8.7578,195.49,195.39,16.27932522]
[1736336677991,6.0978,195.49,195.4,15.72672372]
[1736336678286,6.0978,195.49,195.41,0.55244972]
[1736336682472,6.0978,195.49,195.39,0.55266579]
[1736336682673,6.0978,195.49,195.39,137.65266579]
[1736336682866,6.0978,195.49,195.39,137.1]
[1736336683069,24.73619018,195.48,195.39,137.1]
[1736336683275,20.0,195.45,195.39,137.1]
[1736336685568,6.0978,195.49,195.39,137.1]
[1736336685778,20.0,195.46,195.39,137.1]
[1736336686985,20.0,195.46,195.4,0.55277795]
[1736336687188,6.0978,195.49,195.4,0.55277795]
[1736336688478,7.05696348,195.49,195.39,137.1]
[1736336688679,20.0,195.46,195.39,137.1]
[1736336691180,20.0,195.46,195.4,0.55286352]
[1736336693379,6.0978,195.49,195.4,0.55286352]
[1736336694488,6.0978,195.49,195.4,137.65286352]
[1736336694690,6.0978,195.49,195.4,137.1]
[1736336695005,6.0978,195.49,195.41,0.55255981]
[1736336696106,6.0978,195.49,195.42,15.72672372]
[1736336696287,6.0978,195.49,195.43,0.55231776]
[1736336698107,6.0978,195.49,195.43,0.55231776]
[1736336699802,6.0978,195.49,195.42,137.1]
[1736336700412,6.0978,195.49,195.43,0.55246132]
[1736336700617,6.0978,195.49,195.43,137.65246132]
[1736336700785,6.0978,195.49,195.43,137.1]
[1736336701110,6.0978,195.49,195.37,2.62]
[1736336701111,6.0978,195.49,195.37,137.1]
[1736336701295,20.0,195.46,195.38,0.55275943]
[1736336701488,20.0,195.46,195.38,137.65275943]
[1736336701679,20.0,195.46,195.38,137.1]
[1736336702192,20.0,195.46,195.32,10.5172307]
[1736336702193,20.0,195.44,195.32,145.0172307]
[1736336702505,20.0,195.44,195.33,0.55340734]
[1736336702703,20.0,195.44,195.33,137.65340734]
[1736336702895,20.0,195.44,195.33,137.1]
[1736336703095,1.5772,195.45,195.34,0.55330683]
[1736336703315,21.5772,195.45,195.34,16.28003055]
[1736336703607,21.5772,195.45,195.35,15.72672372]
[1736336703810,1.5772,195.45,195.37,15.72672372]
[1736336703989,1.5772,195.45,195.38,0.55263565]
[1736336704696,1.5772,195.45,195.38,137.65263565]
[1736336704910,1.5772,195.45,195.38,137.1]
[1736336705913,1.5772,195.45,195.36,137.1]
[1736336706113,2.53656966,195.45,195.36,137.1]
[1736336707204,23.776884,195.44,195.3,152.82672372]
[1736336707515,23.776884,195.44,195.31,0.55330518]
[1736336708829,1.5772,195.45,195.33,15.72672372]
[1736336709030,1.5772,195.45,195.34,137.65314748]
[1736336709206,1.5772,195.45,195.34,137.1]
[1736336709718,1.5772,195.45,195.34,152.82672372]
[1736336709923,1.5772,195.45,195.35,23.776884]
[1736336710095,1.5772,195.45,195.38,152.82672372]
[1736336710292,1.5772,195.45,195.39,16.27933608]
[1736336711321,7.7198,195.49,195.39,153.37933608]
[1736336711497,7.7198,195.49,195.4,39.50360772]
[1736336711702,7.7198,195.49,195.41,0.55232836]
[1736336711921,1.622,195.49,195.42,15.72672372]
[1736336712122,1.622,195.49,195.43,137.65214458]
[1736336712327,1.622,195.49,195.44,0.5522787]
[1736336712992,8.1493,195.54,195.44,137.6522787]
[1736336713192,8.1493,195.54,195.45,0.55203685]
[1736336713397,8.1493,195.54,195.45,16.27876057]
[1736336713623,8.1493,195.54,195.45,0.55203685]
[1736336714015,8.1493,195.54,195.45,137.65203685]
[1736336714214,8.1493,195.54,195.45,137.1]
[1736336714416,8.1493,195.54,195.46,0.55193397]
[1736336714804,8.1493,195.54,195.45,137.1]
[1736336715225,8.1493,195.54,195.43,2.6]
[1736336715226,20.0,195.51,195.43,139.7]
[1736336715831,20.0,195.51,195.43,137.1]
[1736336718507,20.0,195.51,195.44,0.55236916]
[1736336719829,20.0,195.51,195.43,137.1]
[1736336719999,22.45969898,195.5,195.39,137.1]
[1736336720198,21.5005,195.5,195.39,137.1]
[1736336720398,0.95925004,195.49,195.39,137.1]
[1736336720599,21.5005,195.5,195.39,137.1]
[1736336721113,21.5005,195.5,195.4,0.55273838]
[1736336721610,1.5005,195.5,195.4,0.55273838]
[1736336722834,1.5005,195.5,195.4,24.32962238]
[1736336723016,1.5005,195.5,195.4,177.1563461]
[1736336723221,1.5005,195.5,195.41,15.72672372]
[1736336723436,1.5005,195.5,195.42,40.0558198]
[1736336724304,1.5005,195.5,195.43,157.1]
[1736336724542,1.5005,195.5,195.43,137.1]
[1736336725432,1.5005,195.5,195.44,0.55251926]
[1736336726020,1.5005,195.5,195.43,137.1]
[1736336727108,1.5005,195.5,195.44,0.55244788]
[1736336727632,1.5005,195.5,195.44,137.1]
[1736336731133,1.5005,195.5,195.45,0.55228004]
[1736336733535,1.5005,195.5,195.45,137.65228004]
[1736336733842,1.5005,195.5,195.45,137.1]
[1736336735223,1.5005,195.5,195.46,0.55223684]
[1736336737428,1.5005,195.5,195.45,137.1]
[1736336739539,1.5005,195.5,195.4,137.1]
[1736336739739,1.5005,195.5,195.41,0.55262203]
[1736336740933,1.5005,195.5,195.41,0.55263482]
[1736336741341,1.5005,195.5,195.4,137.1]
[1736336741853,6.6215,195.48,195.4,137.1]
[1736336743226,6.6215,195.48,195.41,0.55276626]
[1736336747350,1.5005,195.5,195.44,137.1]
[1736336747723,1.5005,195.5,195.45,0.55234457]
[1736336748026,1.5005,195.5,195.44,137.1]
[1736336748222,1.5005,195.5,195.45,0.55237639]
[1736336751442,1.5005,195.5,195.45,161.42926039]
[1736336751644,1.5005,195.5,195.45,160.876884]
[1736336751947,1.5005,195.5,195.46,0.55198162]
[1736336752557,1.5448,195.55,195.46,161.42886562]
[1736336752729,1.5448,195.55,195.47,15.72672372]
[1736336752934,1.5448,195.55,195.48,137.65167903]
[1736336753125,1.5448,195.55,195.48,137.1]
[1736336753330,1.5448,195.55,195.49,0.55160656]
[1736336754048,1.5448,195.55,195.49,34.38477376]
[1736336754357,1.5448,195.55,195.49,0.55160656]
[1736336755636,6.1319,195.58,195.49,40.04037123]
[1736336756041,6.1319,195.58,195.49,16.26348723]
[1736336756243,6.1319,195.58,195.49,40.04037123]
[1736336757260,6.1319,195.58,195.5,152.81188067]
[1736336757463,6.1319,195.58,195.51,0.55135887]
[1736336757635,6.1319,195.58,195.51,137.65135887]
[1736336757833,1.5657,195.6,195.51,137.1]
[1736336759064,1.5657,195.6,195.52,0.55131089]
[1736336762338,21.5657,195.6,195.52,0.55131089]
[1736336763346,1.5657,195.6,195.52,137.65131089]
[1736336763669,1.5657,195.6,195.52,137.1]
[1736336763857,1.5657,195.6,195.53,0.55127844]
[1736336765441,6.3308,195.63,195.54,15.71188067]
[1736336765666,6.3308,195.63,195.55,0.55106684]
[1736336766470,6.3308,195.63,195.53,137.1]
[1736336766651,6.3308,195.63,195.49,137.1]
[1736336766652,6.1126,195.55,195.49,137.1]
[1736336767281,6.1126,195.55,195.5,0.55189741]
[1736336767450,6.1126,195.55,195.49,137.1]
[1736336767644,6.1126,195.55,195.5,0.55170035]
[1736336768166,1.5809,195.59,195.5,153.36358102]
[1736336768467,1.5809,195.59,195.52,15.71188067]
[1736336768653,1.5809,195.59,195.53,16.26319966]
[1736336770344,1.5809,195.59,195.53,0.55131899]
[1736336771072,1.5809,195.59,195.52,0.55149797]
[1736336772160,1.5809,195.59,195.5,137.1]
[1736336772653,1.5809,195.59,195.51,0.55173322]
[1736336772854,1.5809,195.59,195.5,137.1]
[1736336773248,2.53963569,195.59,195.48,137.1]
[1736336773449,20.0,195.56,195.48,137.1]
[1736336776373,1.6125,195.55,195.48,137.1]
[1736336777477,1.6125,195.55,195.45,15.71188067]
[1736336777478,6.1938,195.54,195.38,143.5546]
[1736336777678,0.95910469,195.53,195.4,139.62]
[1736336777976,7.15294581,195.54,195.41,10.612156]
[1736336778380,7.15294581,195.54,195.41,147.712156]
[1736336778675,7.15294581,195.54,195.41,137.1]
[1736336778860,20.0,195.51,195.41,137.1]
[1736336779479,1.658,195.48,195.41,137.1]
[1736336780160,1.658,195.48,195.42,0.55268528]
[1736336780580,1.658,195.48,195.42,10.61227499]
[1736336782287,1.658,195.48,195.42,0.55268528]
[1736336782955,1.658,195.48,195.41,137.1]
[1736336783151,1.658,195.48,195.42,0.55257317]
[1736336783372,1.658,195.48,195.42,10.61216288]
[1736336784455,1.658,195.48,195.42,147.71216288]
[1736336784656,1.658,195.48,195.42,137.1]
[1736336787704,23.776884,195.47,195.37,137.1]
[1736336787879,0.95947228,195.46,195.37,137.1]
[1736336788064,20.0,195.44,195.34,145.0172307]
[1736336788691,1.6579,195.43,195.34,137.1]
[1736336789692,1.6579,195.43,195.35,0.55325283]
[1736336791566,1.6579,195.43,195.36,10.05958971]
[1736336791769,1.6579,195.43,195.37,10.61239509]
[1736336792282,1.6579,195.43,195.39,10.05958971]
[1736336792488,1.5703,195.48,195.4,147.71220623]
[1736336792794,1.5703,195.48,195.41,10.05958971]
[1736336792988,1.5703,195.48,195.42,0.55235071]
[1736336793995,1.5703,195.48,195.4,137.1]
[1736336794172,1.5703,195.48,195.41,0.55255572]
[1736336796010,1.5703,195.48,195.41,16.27718927]
[1736336796210,1.5703,195.48,195.42,15.72463355]
[1736336796403,1.5703,195.48,195.43,137.65232858]
[1736336796581,1.5703,195.48,195.43,137.1]
[1736336796781,1.6233,195.53,195.45,15.72463355]
[1736336796984,1.6233,195.53,195.46,0.55205941]
[1736336797479,1.6233,195.53,195.45,0.55206924]
[1736336798121,1.6233,195.53,195.44,137.1]
[1736336798580,20.0,195.52,195.44,137.1]
[1736336799400,1.6233,195.53,195.45,0.55234258]
[1736336802301,1.6233,195.53,195.45,137.65234258]
[1736336802500,1.6233,195.53,195.45,137.1]
[1736336804418,1.6233,195.53,195.46,0.55223338]
[1736336804927,1.6233,195.53,195.45,137.1]
[1736336806028,1.6233,195.53,195.46,0.55232413]
[1736336806593,1.6233,195.53,195.46,137.65232413]
[1736336806795,1.6233,195.53,195.46,137.1]
[1736336807003,1.6233,195.53,195.47,0.55203633]
[1736336807211,1.6233,195.53,195.46,137.1]
[1736336808932,1.6233,195.53,195.47,0.55214733]
[1736336811412,1.6233,195.53,195.47,137.65214733]
[1736336811614,1.6233,195.53,195.47,137.1]
[1736336814825,1.6233,195.53,195.48,137.6519534]
[1736336815111,1.6233,195.53,195.48,137.1]
[1736336816139,1.6233,195.53,195.49,0.55193937]
[1736336816446,1.6233,195.53,195.48,137.1]
[1736336819327,1.6617,195.58,195.48,137.1]
[1736336819527,1.6617,195.58,195.49,0.55186908]
[1736336821229,1.6617,195.58,195.49,137.65186908]
[1736336821453,1.6617,195.58,195.49,137.1]
[1736336821625,1.6617,195.58,195.5,0.55189893]
[1736336822149,1.6617,195.58,195.49,137.1]
[1736336823827,1.6617,195.58,195.5,0.55185704]
[1736336824248,1.6617,195.58,195.5,137.65185704]
[1736336824458,1.6617,195.58,195.5,147.16138502]
[1736336824830,1.6617,195.58,195.51,10.06138502]
[1736336825041,1.6617,195.58,195.52,137.65147756]
[1736336825244,1.6617,195.58,195.53,0.55148134]
[1736336826530,1.6617,195.58,195.52,137.1]
[1736336827362,1.6617,195.58,195.53,0.5515286]
[1736336829342,1.6617,195.58,195.53,137.6515286]
[1736336829542,1.6617,195.58,195.53,137.1]
[1736336832155,1.6617,195.58,195.54,0.55159606]
[1736336832462,1.5883,195.63,195.56,10.06138502]
[1736336832668,1.5883,195.63,195.57,0.55103938]
[1736336833365,1.5883,195.63,195.57,137.65103938]
[1736336833562,1.5883,195.63,195.57,147.16138502]
[1736336833766,1.5729,195.68,195.57,147.16138502]
[1736336833941,1.5729,195.68,195.58,10.06138502]
[1736336834141,1.5729,195.68,195.59,2.5]
[1736336834349,1.5729,195.68,195.6,2.5]
[1736336836169,1.5729,195.68,195.6,140.15074786]
[1736336836468,1.5729,195.68,195.6,139.6]
[1736336836679,1.5729,195.68,195.6,149.66138502]
[1736336836973,1.5729,195.68,195.6,139.6]
[1736336837477,1.5729,195.68,195.61,137.65056557]
[1736336837772,1.5729,195.68,195.61,147.16138502]
[1736336838465,1.5729,195.68,195.63,10.06138502]
[1736336838666,1.5729,195.68,195.63,10.61163228]
[1736336838878,1.5729,195.68,195.63,0.55024726]
[1736336839587,1.5729,195.68,195.61,147.16138502]
[1736336839877,1.5729,195.68,195.62,10.61167795]
[1736336840177,1.5729,195.68,195.63,10.06138502]
[1736336840556,1.552,195.73,195.64,10.06138502]
[1736336841082,1.552,195.73,195.65,10.06138502]
[1736336842567,1.552,195.73,195.66,10.06138502]
[1736336842862,1.552,195.73,195.67,2.5]
[1736336843063,1.552,195.73,195.66,139.6]
[1736336844387,1.552,195.73,195.66,2.5]
[1736336844558,1.552,195.73,195.66,12.56138502]
[1736336845482,1.552,195.73,195.66,139.6]
[1736336845708,1.6303,195.78,195.68,137.1]
[1736336845904,1.6303,195.78,195.68,147.16138502]
[1736336846690,1.6303,195.78,195.69,147.16138502]
[1736336847191,1.6303,195.78,195.69,137.1]
[1736336848887,1.6303,195.78,195.71,10.06138502]
[1736336849510,1.6303,195.78,195.7,10.06138502]
[1736336849991,1.6303,195.78,195.69,137.1]
[1736336850198,0.95775108,195.77,195.67,10.06138502]
[1736336850383,0.95775108,195.77,195.66,147.16138502]
[1736336850703,0.95775108,195.77,195.67,10.06138502]
[1736336851193,0.95775108,195.77,195.66,147.16138502]
[1736336851894,0.95775108,195.77,195.67,10.06138502]
[1736336852511,1.6303,195.78,195.71,10.06138502]
[1736336852809,1.6303,195.78,195.74,10.06138502]
[1736336853017,2.4710298,195.85,195.71,12.56138502]
[1736336853185,23.776884,195.84,195.7,157.1]
[1736336853386,23.776884,195.8,195.7,137.1]
[1736336853689,20.0,195.78,195.68,137.1]
[1736336853878,0.9579308,195.77,195.68,137.1]
[1736336855385,0.9579308,195.77,195.67,137.1]
[1736336855798,0.9579308,195.77,195.68,10.06138502]
[1736336856612,0.95786901,195.8,195.69,10.06138502]
[1736336856990,0.95786901,195.8,195.68,0.55001269]
[1736336856991,0.95786901,195.8,195.7,10.06138502]
[1736336857187,0.95786901,195.8,195.71,10.06138502]
[1736336857409,0.95786901,195.8,195.7,10.06138502]
[1736336857794,0.95786901,195.8,195.69,10.06138502]
[1736336857998,0.95786901,195.8,195.69,137.1]
[1736336858207,8.1261,195.81,195.72,10.06138502]
[1736336858610,8.1261,195.81,195.71,10.06138502]
[1736336859013,8.1261,195.81,195.7,10.06138502]
[1736336859204,0.95772366,195.8,195.7,2.5]
[1736336859516,23.776884,195.79,195.69,137.1]
[1736336859726,20.95792509,195.78,195.66,149.66138502]
[1736336860083,20.95792509,195.78,195.67,10.06138502]
[1736336860287,20.95792509,195.78,195.68,10.06138502]
[1736336860826,8.1261,195.81,195.7,147.16138502]
[1736336860827,0.95786365,195.8,195.7,147.16138502]
[1736336861529,0.95786365,195.8,195.7,152.77870268]
[1736336861832,0.9577326,195.8,195.7,152.77870268]
[1736336862794,0.9577326,195.8,195.7,152.27870268]
[1736336863236,8.1261,195.81,195.7,152.27870268]
[1736336863415,0.95771985,195.8,195.7,152.27870268]
[1736336864126,8.1261,195.81,195.71,15.67870268]
[1736336864420,0.95771957,195.8,195.7,152.27870268]
[1736336864839,0.95771957,195.8,195.7,136.6]
[1736336865037,23.776884,195.79,195.66,136.6]
[1736336865208,20.95798061,195.78,195.66,151.77870268]
[1736336866627,25.291584,195.77,195.66,136.1]
[1736336866830,0.95801703,195.76,195.66,136.1]
[1736336867035,0.95801703,195.76,195.66,151.77870268]
[1736336867931,0.95801703,195.76,195.66,136.1]
[1736336868910,0.95801703,195.76,195.66,151.77870268]
[1736336869118,2.47262199,195.77,195.66,151.77870268]
[1736336871307,0.95792199,195.77,195.7,20.0]
[1736336871508,1.5707,195.86,195.79,20.0]
[1736336871737,1.5707,195.91,195.85,15.67870268]
[1736336871903,1.5707,195.91,195.87,15.67870268]
[1736336872530,16.95471638,195.96,195.88,15.67870268]
[1736336872719,16.95471638,195.96,195.88,16.22684958]
[1736336873034,16.95471638,195.96,195.9,15.67870268]
[1736336873328,16.95471638,195.96,195.88,15.67870268]
[1736336873915,6.2673,195.97,195.88,16.22677477]
[1736336874432,6.2673,195.97,195.87,15.67870268]
[1736336874933,6.2673,195.97,195.89,15.67870268]
[1736336875715,6.2673,195.97,195.88,16.22684727]
[1736336876923,1.5552,195.96,195.88,16.22684727]
[1736336877436,24.73374724,195.95,195.85,7.9172307]
[1736336877940,24.73374724,195.95,195.82,15.67870268]
[1736336878307,20.0,195.94,195.85,15.67870268]
[1736336879629,4.0352,195.96,195.85,15.67870268]
[1736336879810,2.51221756,195.96,195.85,15.67870268]
[1736336881242,1.5552,195.96,195.92,15.67870268]
[1736336881415,0.9570222,196.02,195.95,15.67870268]
[1736336881611,7.5768,196.05,195.95,16.22639962]
[1736336882035,0.95655194,196.04,195.93,15.67870268]
[1736336882211,0.95655194,196.04,195.92,18.15870268]
[1736336882409,0.95655194,196.04,195.92,2.48]
[1736336882618,0.95655194,196.04,195.93,16.22633834]
[1736336883034,0.95655194,196.04,195.94,15.67870268]
[1736336883219,23.776884,196.04,195.94,15.67870268]
[1736336883820,24.73348225,196.04,195.94,15.67870268]
[1736336884130,24.73348225,196.04,195.93,16.22633834]
[1736336884334,24.73348225,196.04,195.94,23.59593338]
[1736336884335,23.776884,196.04,195.94,23.59593338]
[1736336884522,23.776884,196.04,195.95,15.67870268]
[1736336884910,23.776884,196.04,195.95,24.14332049]
[1736336885140,7.5768,196.05,195.96,15.67870268]
[1736336885442,7.5768,196.05,195.97,16.22583941]
[1736336886326,7.5768,196.05,195.97,0.85132303]
[1736336886818,7.5768,196.05,195.95,15.67870268]
[1736336887414,7.5768,196.05,195.93,159.69593338]
[1736336887623,24.73342483,196.04,195.93,144.0172307]
[1736336888246,24.73342483,196.04,195.93,7.9172307]
[1736336888444,6.1169,195.98,195.91,7.9172307]
[1736336888622,23.776884,195.96,195.91,7.9172307]
[1736336888829,0.95704471,195.95,195.91,7.9172307]
[1736336889027,0.95704471,195.95,195.86,7.9172307]
[1736336889622,0.95704471,195.95,195.84,15.8344614]
[1736336889623,23.776884,195.94,195.84,7.9172307]
[1736336889945,0.95714539,195.93,195.82,7.9172307]
[1736336890341,6.0953,195.9,195.82,7.9172307]
[1736336890540,23.776884,195.88,195.8,7.9172307]
[1736336890844,0.9574653,195.87,195.8,7.9172307]
[1736336891145,23.776884,195.88,195.76,23.59593338]
[1736336891742,23.776884,195.88,195.76,7.9172307]
[1736336891948,0.95740939,195.87,195.76,7.9172307]
[1736336892150,0.95740939,195.87,195.75,7.9172307]
[1736336892335,20.0,195.85,195.75,7.9172307]
[1736336892545,20.9575565,195.85,195.75,7.9172307]
[1736336892924,20.0,195.87,195.75,7.9172307]
[1736336893130,24.73446659,195.86,195.74,7.9172307]
[1736336893528,0.95758259,195.86,195.74,7.9172307]
[1736336893725,6.0953,195.9,195.76,15.67870268]
[1736336893925,0.95735342,195.89,195.76,15.67870268]
[1736336894141,7.05265956,195.9,195.77,35.67870268]
[1736336894649,7.05265956,195.9,195.8,20.0]
[1736336894852,7.05265956,195.9,195.81,2.48]
[1736336895357,7.05256963,195.9,195.81,2.48]
[1736336895851,6.0953,195.9,195.81,2.48]
[1736336896033,6.0953,195.9,195.81,18.15870268]
[1736336896235,1.6653,195.91,195.81,18.15870268]
[1736336896554,6.6607,195.95,195.82,15.67870268]
[1736336896853,7.61772154,195.95,195.83,2.48]
[1736336897051,7.61772154,195.95,195.83,10.3972307]
[1736336897732,6.6607,195.95,195.83,10.3972307]
[1736336897933,20.0,195.92,195.83,7.9172307]
[1736336898151,0.95723067,195.91,195.83,7.9172307]
[1736336898433,26.256884,195.94,195.81,7.9172307]
[1736336898642,23.776884,195.92,195.81,7.9172307]
[1736336898836,23.776884,195.9,195.79,2.48]
[1736336899031,0.95563139,195.89,195.79,22.48]
[1736336899635,0.95563139,195.89,195.79,2.48]
[1736336899930,0.95563139,195.89,195.79,22.48]
[1736336900133,3.43563139,195.94,195.8,0.76589229]
[1736336900446,20.0,195.92,195.79,3.24578258]
[1736336900757,0.95563139,195.91,195.79,3.24578258]
[1736336901331,20.0,195.92,195.79,3.24578258]
[1736336901537,20.0,195.91,195.8,15.67870268]
[1736336901750,0.95563139,195.93,195.81,0.76569563]
[1736336902150,43.776884,195.92,195.79,2.48]
[1736336902459,20.0,195.87,195.76,7.9172307]
[1736336902669,24.73251539,195.86,195.76,7.9172307]
[1736336902961,24.73251539,195.86,195.73,0.76606871]
[1736336903164,24.73251539,195.86,195.74,20.0]
[1736336903333,24.73251539,195.86,195.75,20.0]
[1736336903733,24.73251539,195.86,195.75,20.7660575]
[1736336904257,0.95563139,195.86,195.75,20.7660575]
[1736336904634,0.95563139,195.89,195.75,16.44476018]
[1736336904956,7.7124,195.9,195.78,15.67870268]
[1736336905261,7.7124,195.9,195.78,3.24584591]
[1736336905841,0.95563139,195.89,195.78,3.24584591]
[1736336906041,0.95563139,195.89,195.79,20.0]
[1736336906643,0.95563139,195.89,195.78,22.48]
[1736336907065,23.776884,195.88,195.78,2.48]
[1736336907241,0.95563139,195.87,195.78,2.48]
[1736336908266,0.95563139,195.87,195.75,23.24594368]
[1736336908453,20.95563139,195.87,195.77,20.0]
[1736336908646,20.0,195.87,195.77,0.76588912]
[1736336908849,20.0,195.87,195.76,0.76592542]
[1736336909560,0.95563139,195.89,195.76,25.83254599]
[1736336910557,7.7124,195.9,195.77,25.06662057]
[1736336910755,7.7124,195.9,195.8,20.0]
[1736336910947,0.95563139,195.89,195.8,20.0]
[1736336911147,0.95563139,195.89,195.79,20.0]
[1736336911367,23.776884,195.88,195.76,7.9172307]
[1736336911567,0.95563139,195.87,195.76,7.9172307]
[1736336912232,23.776884,195.86,195.76,7.9172307]
[1736336912456,0.95563139,195.85,195.76,7.9172307]
[1736336912847,0.95563139,195.85,195.75,2.48]
[1736336913367,24.73251539,195.86,195.75,2.48]
[1736336914166,24.73251539,195.86,195.74,8.68324371]
[1736336914369,7.7124,195.9,195.77,20.0]
[1736336914703,0.95563139,195.89,195.78,20.0]
[1736336914903,23.776884,195.88,195.78,20.0]
[1736336915097,0.95563139,195.87,195.77,20.0]
[1736336915260,0.95563139,195.87,195.78,20.0]
[1736336915768,0.95563139,195.87,195.75,33.74979804]
[1736336916167,0.95563139,195.87,195.78,20.0]
[1736336916586,0.95563139,195.89,195.78,20.0]
[1736336916789,23.776884,195.88,195.78,20.0]
[1736336916967,0.95563139,195.87,195.78,20.0]
[1736336917159,23.776884,195.86,195.74,7.9172307]
[1736336917501,23.776884,195.82,195.74,7.9172307]
[1736336917792,0.95563139,195.81,195.74,7.9172307]
[1736336917997,0.95563139,195.81,195.7,32.98385127]
[1736336918205,0.95563139,195.82,195.71,25.83285621]
[1736336918491,7.20523139,195.83,195.72,25.06662057]
[1736336918690,7.20523139,195.83,195.73,0.76608244]
[1736336919393,7.20523139,195.83,195.74,20.0]
[1736336920185,7.20523139,195.83,195.71,8.6833565]
[1736336920688,7.20523139,195.83,195.71,0.7661258]
[1736336921256,7.20523139,195.83,195.7,25.06662057]
[1736336921456,7.20523139,195.83,195.72,20.0]
[1736336921666,7.20523139,195.83,195.69,33.75000091]
[1736336921970,23.776884,195.82,195.69,7.9172307]
[1736336922148,23.776884,195.8,195.68,7.9172307]
[1736336922349,0.95563139,195.79,195.68,32.98385127]
[1736336922667,0.95563139,195.82,195.69,25.83288541]
[1736336922972,23.776884,195.81,195.69,25.83288541]
[1736336923156,0.95563139,195.8,195.69,25.83288541]
[1736336923358,0.95563139,195.82,195.7,25.06662057]
[1736336923565,0.95563139,195.82,195.74,20.0]
[1736336923758,7.20523139,195.83,195.74,20.0]
[1736336923951,7.20523139,195.83,195.73,20.0]